Cogmind - Beta 14 @@@ ROGUE MODE // 2024.09.09 @ 22:38:30 Player: MadBadger Result: Destroyed by 96-5KW(R) with Subdweller Laser Performance ------------- Evolutions (0) 0 Regions Visited (3) 600 Robots Destroyed (23) 115 Value Destroyed (635) 635 Prototype IDs (0) 0 Alien Tech Used (0) 0 Bonus (0) 0 TOTAL SCORE: 1350 Bonus ------- None Cogmind --------- Core Integrity 0/250 Matter 219/300 Energy 250/250 System Corruption 8% Temperature Cool (6) Movement Treading (240) Ox1 Location -10/Subcaves Parts ------- > --- POWER (1) -------- Ion Engine > --- PROPULSION (2) --- Light Treads Light Treads > --- UTILITY (2) ------ High-capacity Storage Unit Structural Scanner > --- WEAPON (2) ------- Assault Rifle > --- INVENTORY (20) --- Light Ion Engine Light Treads Light Treads EM Pulse Gun Light Cannon Grenade Launcher Mining Laser Peak State ------------ > --- POWER ------------ Light Ion Engine > --- PROPULSION ------- Light Treads Light Treads > --- UTILITY ---------- Small Storage Unit Structural Scanner > --- WEAPON ----------- Light Assault Rifle Light Assault Rifle > --- INVENTORY -------- Light Ion Engine Wheel Compact Wheel EM Pulse Gun [Rating: 7] Favorites ----------- Power Ion Engine Engine Ion Engine Propulsion Light Treads Treads Light Treads Utility Structural Scanner Device Structural Scanner Storage High-capacity Storage Unit Weapon Assault Rifle Energy Gun EM Pulse Gun Ballistic Gun Assault Rifle Launcher Grenade Launcher Build | -11 -10 -10 -10 ------- Run | Yrd Mat Min Sub Slots Evolved . | . . . . Power . | . . . . Propulsion . | . . . . Utility . | . . . . Weapon . | . . . . Parts Attached 19 | 6 11 1 1 Power 2 | 1 1 . . Engine 2 | 1 1 . . Core . | . . . . Reactor . | . . . . Propulsion 4 | 2 2 . . Treads 4 | 2 2 . . Leg . | . . . . Wheel . | . . . . Hover . | . . . . Flight . | . . . . Utility 4 | 1 3 . . Device 1 | . 1 . . Storage 3 | 1 2 . . Processor . | . . . . Hackware . | . . . . Protection . | . . . . Artifact . | . . . . Weapon 9 | 2 5 1 1 Energy Gun 2 | . 2 . . Energy Cannon . | . . . . Ballistic Gun 5 | 2 3 . . Ballistic Cannon . | . . . . Launcher 2 | . . 1 1 Special Weapon . | . . . . Impact Weapon . | . . . . Slashing Weapon . | . . . . Piercing Weapon . | . . . . Special Melee Weapon . | . . . . Unidentified Prototypes . | . . . . Parts Lost 1 | . 1 . . Power . | . . . . Propulsion . | . . . . Utility . | . . . . Weapon 1 | . 1 . . Highest Loss Streak 1 | . 1 . . To Critical Strikes . | . . . . Average Slot Usage (%) 96 | . 97 94 86 Engine 14 | . 14 14 14 Treads 28 | . 28 28 28 Device 13 | . 13 14 14 Storage 14 | . 14 14 14 Energy Gun 3 | . 3 1 . Ballistic Gun 19 | . 22 14 14 Launcher 1 | . . 7 1 Peak Build Rating 7 | 6 7 7 7 Average Rating 6 | 4 6 6 6 On Entrance 4 | . 6 7 6 Naked Turns . | . . . . Heaviest Build 51 | 10 50 51 51 Greatest Support 40 | 40 40 40 40 Greatest Overweight (x) 1 | . 1 1 1 Average Overweight (x) . | . . 1 1 Largest Inventory Capacity 20 | 8 20 20 20 Average Capacity 17 | 6 16 20 20 Most Carried 8 | 4 8 7 7 Average Carried 4 | 1 3 5 6 Final Capacity 20 | 8 20 20 20 Final Carried 7 | 4 4 7 7 Class Distribution -------------------- 100% | Mutant Dominant Class ---------------- Mutant | -10/Materials Mutant | -10/Mines Mutant | -10/Subcaves Resources | -11 -10 -10 -10 ----------- Run | Yrd Mat Min Sub Matter Collected 733 | 236 417 49 31 Remotely . | . . . . Salvage Created 797 | . 654 105 38 Parts 58 | . 51 5 2 Haulers Intercepted . | . . . . Recyclers Shooed 2 | . 2 . . Parts Field Recycled . | . . . . Retrieved Matter . | . . . . Parts Self-Destructed 6 | . . . 6 Prevented . | . . . . Kills | -11 -10 -10 -10 ------- Run | Yrd Mat Min Sub Combat Hostiles Destroyed 18 | . 14 2 2 Guns 16 | . 14 2 . AOE 2 | . . . 2 Classes Destroyed 7 | . 6 . 1 Worker 1 | . 1 . . Builder 1 | . 1 . . Recycler 1 | . 1 . . Watcher 2 | . 2 . . Swarmer 3 | . 3 . . Grunt 13 | . 11 2 . Subdweller 2 | . . . 2 Best Kill Streak 3 | . 3 2 2 Combat Bots Only 2 | . 2 2 2 Max Kills in Single Turn 1 | . 1 1 1 Gunslinging . | . . . . Exploded 1 | . . . 1 Melee . | . . . . Uniques/NPCs Destroyed . | . . . . Combat | -11 -10 -10 -10 -------- Run | Yrd Mat Min Sub Hostile Shots Fired 89 | . 68 11 10 Missed 20 | . 17 . 3 Damage Taken 883 | . 587 150 146 Core 250 | . 169 15 66 Absorbed by Shields . | . . . . Core Remaining (%) 100 | 100 . . . Volleys Fired 86 | . 75 7 4 Largest 2 | . 2 2 2 Hottest 60 | . 60 60 50 Shots Fired 148 | . 122 18 8 Gun 143 | . 122 17 4 Cannon . | . . . . Launcher 5 | . . 1 4 Special . | . . . . Kinetic 135 | . 121 10 4 Thermal . | . . . . Explosive 5 | . . 1 4 Electromagnetic 8 | . 1 7 . Robot Hit Streak 13 | . 13 3 7 Robot Miss Streak 3 | . 3 2 1 Penetration Max . | . . . . Secondary Targets 2 | . 1 1 . Max Gunslinging Chain 1 | . 1 1 . Shots Hit Robots 94 | . 77 10 7 Core Hits 53 | . 42 7 4 Critical Kills 1 | . 1 . . Critical Parts Destroyed . | . . . . Critical Strikes 1 | . 1 . . Destroy 1 | . 1 . . Melee Attacks . | . . . . Impact . | . . . . Slashing . | . . . . Piercing . | . . . . Sneak Attacks . | . . . . Combat Hostiles . | . . . . Follow-up Attacks . | . . . . Damage Inflicted 1186 | . 715 200 271 Guns 866 | . 712 129 25 Cannons . | . . . . Explosions 317 | . . 71 246 Melee . | . . . . Ramming 3 | . 3 . . Kinetic 799 | . 712 62 25 Thermal . | . . . . Explosive 317 | . . 71 246 Electromagnetic 67 | . . 67 . Impact . | . . . . Slashing . | . . . . Piercing . | . . . . Highest Corruption 8 | . 8 8 8 Average Corruption 7 | . 7 8 8 Corruption Purged . | . . . . Corruption Blocked . | . . . . Effects 98 | . 64 26 8 Message Errors 22 | . 20 1 1 Matter Fused 18 | . 11 5 2 Heat Flow Errors 20 | . 14 5 1 Energy Discharges 8 | . 4 3 1 Parts Rejected 2 | . 2 . . Data Loss (minor) 11 | . 6 3 2 Data Loss (major) 7 | . 3 3 1 Misfires 5 | . 1 4 . Alerts 4 | . 2 2 . Weapon Failures 1 | . 1 . . Overload Shots . | . . . . Overflow Damage . | . . . . Projectiles . | . . . . Explosions . | . . . . Melee . | . . . . Knockbacks . | . . . . Impact . | . . . . Kinetic . | . . . . Secondary . | . . . . Self-Inflicted Damage . | . . . . Shots . | . . . . Rammed 1 | . 1 . . Targets Rammed 1 | . 1 . . Kicked . | . . . . Crushed . | . . . . Highest Temperature 259 | . 259 223 240 Average Temperature 74 | . 73 69 122 Received Heat Transfer 432 | . 303 87 42 Effects 1 | . 1 . . Energy Bleed 1 | . 1 . . Siege Activations . | . . . . Robots Corrupted . | . . . . Combat Hostiles . | . . . . Parts Fried 1 | . . 1 . Impact Corruptions . | . . . . Robots Melted . | . . . . Combat Hostiles . | . . . . Parts Melted . | . . . . Heat Transferred . | . . . . Parts Sabotaged . | . . . . Parts Stolen . | . . . . Parts Stripped . | . . . . Power Chain Reactions . | . . . . Alert | -11 -10 -10 -10 ------- Run | Yrd Mat Min Sub Peak Influence 230 | . 230 50 . Initial . | . . . . Average 48 | . 60 21 . Maximum Alert Level 1 | . 1 . . Low Security (%) 97 | 100 96 100 . Level 1 2 | . 3 . . Level 2 . | . . . . Level 3 . | . . . . Level 4 . | . . . . Level 5 . | . . . . High Security . | . . . . Max Security . | . . . . Squads Dispatched 2 | . 2 . . Investigation 1 | . 1 . . Extermination . | . . . . Reinforcement 1 | . 1 . . Assault . | . . . . Garrison . | . . . . Intercept . | . . . . Searches Triggered . | . . . . Construction Impeded . | . . . . Haulers Reinforced . | . . . . Active Scanning Responses . | . . . . Cargo Convoy Interrupts . | . . . . Stealth | -11 -10 -10 -10 --------- Run | Yrd Mat Min Sub Distress Signals 1 | . 1 . . Communications Jammed . | . . . . Distress Signals . | . . . . Times Spotted 37 | . 31 2 4 Peak Tracking Total 4 | . 4 2 2 Tactical Retreats 3 | . 3 . . Traps | -11 -10 -10 -10 ------- Run | Yrd Mat Min Sub Traps Triggered 6 | . 6 . . Indirectly . | . . . . Trap Hack Attempts . | . . . . Triggered . | . . . . Disarmed . | . . . . Reprogrammed . | . . . . Reused . | . . . . Traps Extracted . | . . . . Installed . | . . . . Triggered . | . . . . Machines | -11 -10 -10 -10 ---------- Run | Yrd Mat Min Sub Machines Disabled . | . . . . Max in Single Turn . | . . . . Machines Repaired . | . . . . Machines Dismantled . | . . . . Machines Sabotaged . | . . . . Overloaded Fab Kills . | . . . . Hacking | -11 -10 -10 -10 --------- Run | Yrd Mat Min Sub Machines Accessed . | . . . . Terminals . | . . . . Fabricators . | . . . . Repair Stations . | . . . . Recycling Units . | . . . . Scanalyzers . | . . . . Garrison Access . | . . . . Total Hacks . | . . . . Successful . | . . . . Failed . | . . . . Catastrophic . | . . . . Database Lockouts . | . . . . Manual . | . . . . Terminals . | . . . . Fabricators . | . . . . Repair Stations . | . . . . Recycling Units . | . . . . Scanalyzers . | . . . . Garrison Access . | . . . . Terminal Hacks . | . . . . Fabricator Hacks . | . . . . Repair Station Hacks . | . . . . Recycling Unit Hacks . | . . . . Scanalyzer . | . . . . Garrison Access Hacks . | . . . . Unauthorized Hacks . | . . . . Terminals . | . . . . Fabricators . | . . . . Repair Stations . | . . . . Recycling Units . | . . . . Scanalyzers . | . . . . Garrison Access . | . . . . Data Cores Recovered . | . . . . Used . | . . . . Hacking Detections . | . . . . Full Trace Events . | . . . . Feedback Events . | . . . . Feedback Blocked . | . . . . Robot Schematics Acquired . | . . . . Robots Built . | . . . . Authchips . | . . . . Time . | . . . . Total Robot Build Rating . | . . . . Part Schematics Acquired . | . . . . Parts Built . | . . . . Authchips . | . . . . Time . | . . . . Total Part Build Rating . | . . . . Parts Repaired . | . . . . Time . | . . . . Parts Recycled . | . . . . Recycled Matter . | . . . . Retrieved Matter . | . . . . Retrieved Components . | . . . . Parts Scanalyzed . | . . . . Part Schematics Acquired . | . . . . Parts Damaged . | . . . . Bothacking | -11 -10 -10 -10 ------------ Run | Yrd Mat Min Sub Used RIF Installer . | . . . . Robots Hacked . | . . . . Non-combat . | . . . . Combat . | . . . . Robot Hacks Applied . | . . . . Relay Couplers Released . | . . . . Fabnet Peak Effective % . | . . . . Robots Rewired . | . . . . Allies Hacked . | . . . . Hacks Repelled . | . . . . Allies | -11 -10 -10 -10 -------- Run | Yrd Mat Min Sub Total Allies . | . . . . Largest Group . | . . . . Highest-Rated Group . | . . . . Highest-Rated Ally . | . . . . Total Orders . | . . . . Ally Attacks . | . . . . Total Damage . | . . . . Kills . | . . . . Allies Corrupted . | . . . . Allies Melted . | . . . . Intel | -11 -10 -10 -10 ------- Run | Yrd Mat Min Sub Robot Analysis Total . | . . . . Derelict Logs Recovered 3 | . . 2 1 Drone Launches . | . . . . Drone Recoveries . | . . . . Exploration | -11 -10 -10 -10 ------------- Run | Yrd Mat Min Sub Turns Passed 3829 | 98 2530 888 313 Spaces Moved 1624 | 56 1084 359 125 Core 3 | 3 . . . Treads 1621 | 53 1084 359 125 Legs . | . . . . Wheels . | . . . . Hover . | . . . . Flight . | . . . . Fastest Speed 50 | 50 160 240 240 Average Speed 214 | 154 206 240 240 Slowest Speed 240 | 160 240 240 240 Overloaded Moves . | . . . . Propulsion Burnouts . | . . . . Robots Hopped . | . . . . Cave-ins Triggered . | . . . . Exploration Rate (%) 40 | 6 93 51 12 Regions Visited 3 Branch Regions 2 Pre-discovered Areas 1 | . . . 1 Known Exits Taken . | . . . . Unknown Exits Taken 3 | 1 1 1 . Scrap Searched 1 | . . 1 . Spaces Dug . | . . . . Terrain Destroyed 10 | . . 5 5 Melee . | . . . . Projectile . | . . . . AOE 10 | . . 5 5 Terrain Rammed . | . . . . Walls Destroyed . | . . . . Machines Disabled . | . . . . Actions | -11 -10 -10 -10 --------- Run | Yrd Mat Min Sub Total 1836 | 65 1267 373 131 Wait 90 | . 86 4 . Move 1621 | 55 1083 358 125 Hop . | . . . . Pick Up 8 | 4 3 1 . Fast Attach 9 | 6 2 1 . Attach 4 | . 3 . 1 Detach 4 | . 1 2 1 Swap 6 | . 6 . . Drop 7 | . 7 . . Fire 86 | . 75 7 4 Melee . | . . . . Ram . | . . . . Kick . | . . . . Crush 1 | . 1 . . Escape Stasis . | . . . . Rewire . | . . . . Trap . | . . . . Miscellaneous . | . . . . Route ------- -11/Scrapyard -10/Materials (discovered 5 exits: [*Mat x3] / [*Min x2]) -10/Mines (discovered 3 exits: [*Mat x2] / [*Sub]) -10/Subcaves History --------- Turn | Location | Event 6 | -11/Scrapyard | Discovered new exit (range 15) 99 | -11/Scrapyard | Entered Materials 306 | -10/Materials | Build established: Mutant 588 | -10/Materials | Discovered new exit (range 3) 722 | -10/Materials | Discovered new exit (range 10) 962 | -10/Materials | Discovered new exit (range 3) 1061 | -10/Materials | Discovered new exit (range 16) 1133 | -10/Materials | Core integrity fell below 50% 1404 | -10/Materials | Discovered new exit (range 6) 2629 | -10/Materials | Entered Mines 2706 | -10/Mines | Discovered new exit (range 12) 2715 | -10/Mines | Learned 2 Materials zone layouts 2731 | -10/Mines | YI-UF0 nonchalantly dropped a Grenade Launcher on the ground 3081 | -10/Mines | Discovered new exit (range 11) 3081 | -10/Mines | Discovered new exit (range 5) 3230 | -10/Mines | Learned location of 1 exit from Materials 3517 | -10/Mines | Entered Subcaves 3570 | -10/Subcaves | Learned location of Storage (-8) 3616 | -10/Subcaves | Core integrity fell below 20% 3830 | -10/Subcaves | Destroyed by 96-5KW(R) with Subdweller Laser Last Messages --------------- 03518_ 5DKXMYCYZ=MQI3ERZ:J%G6=RE 03551_ System corrupted: Matter fused (-5). 03567_ System corrupted: Component data lost. 03570_ Acquired derelict log, extracted data. World map updated: -8/Storage. 03623_ RM-FIU(R) destroyed. 03633_ TD-DEY(R) destroyed. 03637_ System corrupted: Heat flow error (+280). 03643_ Acquired 10 matter. 03648_ Acquired 21 matter. 03657_ Subatomizers dissect the Sub. Power Source. 03681_ PU-CDF(u) builds Twisted Machinery. 03684_ System corrupted: Substantial component data lost. 03685_ PU-CDF(u) builds Twisted Machinery. 03710_ Subatomizers dissect the Sub. Laser. 03729_ System corrupted: Energy discharge (-75). 03735_ Subatomizers dissect the Sub. Laser, destroying it. 03748_ Subatomizers dissect the Sub. Power Source. 03755_ System corrupted: Matter fused (-6). 03806_ System corrupted: Component data lost. Map ----- +----------------------------------------------------+ | ?????????????????????????????????????????????????? | | ?????????????????????????????????????????????????? | | ?????????????????????????????????????????????????? | | ?????????????????????????????????????????????????? | | ?????????????????????????????????????????????????? | | ?????????????????????????????????????????????????? | | ?????????????????????????????????????????????????? | | ?????????????????????????????????????????????????? | | ?????????????????????????????????????????????????? | | ?????????????????? #???????????????????????????? | | ????????????????? ##???????????????????????????? | | ???? #####?????? ##???????????????????????????? | | ?? ####### ### ##???????????????????????????? | | ??## ######## ##???????????????????????????? | | ??## ## #### ???????????????????????????? | | ??### ## ### ???????????????????????????? | | #?## ## ### # ??????????????????????????? | | ###### ## ## ####?????????????????????????? | | ####### ###?????????????????????????? | | ##### ## ##?????????????????????????? | | # ### #####??????????????????????? | | ## ## #######????????????????????? | | ### ;# ####????????????????????? | | ### ##???#######??????????? | | ## R ############??????????? | | # ## @ ###### " ###?????????? | | ### ### " ###????????? | | # #### ### ##"""###??####??? | | # ## ##### ###"""##??#####?? | | # ##### ###""###?? ####? | | ### ## ####" ###? | | ### ## ### ##? | | ## # ### ### #"" " #? | | ######### ######## # # """""""??? | | ##################### ## & ""##???? | | #####?????######????####### """##???? | | ####?????????????????###### ### ""###???? | | ?????????????????????????######### " "" ###???? | | ?????????????????????????####### "" # ###????? | | ?????????????????????????????### ####????? | | ???????????????????????????##### # ####????? | | ??????????????????????????##### ## ######?? | | ??????????????????????????### ### ######? | | ?????????????????????????### ##### #### | | ?????????????????????????### ######## ## | | ?????????????????????????## #### # # ## ## | | ?????????????????????????## ##?## ## ## | | ?????????????????????????## ###### # ### "" | | ?????????????????????????## ##### ## #### " | | ????????????????????????### ## ######"" | +----------------------------------------------------+ Best States ------------- Heat Dissipation 25 Energy Generation 10 Energy Capacity 250 Matter Stores 300 Matter Capacity 300 Sight Range 16 Terrain Scan Density 10 Evasion (%) 40 Recoil Reduction 2 Item Schematics ----------------- None Robot Schematics ------------------ None Fabricated ------------ Nothing Alien Tech Used ----------------- None Achievements -------------- None Challenges ------------ None Game ------ Seed NavigationNodeStreamer Manual? 0 Play Time 00:22:09 Cumulative 14.7 hours Start 2024.09.09 @ 22:13:54 End 2024.09.09 @ 22:38:30 Sessions 1 Manual Loads 0 Difficulty Rogue Special Mode None Game No. 25 Rogue 25 Adventurer 0 Explorer 0 Win Type - Total 0 Types 0/0/0/0/0/0/0/0/0 Lore% 6 Gallery% 11 Achievement% 13 Wizard Run 0 Options --------- Layout 0 ASCII 0 Keyboard 1 Movement Numpad Keybinds 0 Fullscreen 1 Font 24/Smallcaps Map View 76x50 Zoom Use 0% Tactical HUD 1 Map Filters NONE Filters NONE Steam 1 RUN: fe1e8a05-b0b4-42ae-8081-935592925ae0